bitfinex/quotes_BTCUSD_20240717
["timestamp","ask_amount","ask_price","bid_price","bid_amount"]
[1721236638602,0.155775,64195.0,64193.0,0.12936628]
[1721236641255,0.00067978,64203.0,64201.0,0.15576]
[1721236641656,0.00467978,64203.0,64202.0,0.155758]
[1721236641853,0.00467978,64203.0,64202.0,0.77879]
[1721236642033,0.00467978,64203.0,64202.0,1.314206]
[1721236642229,0.00467978,64203.0,64202.0,1.59793187]
[1721236643058,0.00167978,64203.0,64202.0,1.59793187]
[1721236643461,0.00167978,64203.0,64202.0,1.46858774]
[1721236643661,0.00167978,64203.0,64202.0,1.60692054]
[1721236643864,0.00167978,64203.0,64202.0,1.47758774]
[1721236644070,0.00167978,64203.0,64202.0,1.6069213]
[1721236644268,0.00567978,64203.0,64202.0,1.6119213]
[1721236645185,0.00567978,64203.0,64202.0,1.6119209]
[1721236645505,0.00567978,64203.0,64202.0,2.0701369]
[1721236645671,0.00567978,64203.0,64202.0,2.09285203]
[1721236645872,0.00567978,64203.0,64202.0,1.75833603]
[1721236646072,0.00567978,64203.0,64202.0,1.14222003]
[1721236646538,0.00567978,64203.0,64202.0,0.92183736]
[1721236646860,0.00567978,64203.0,64202.0,0.14333223]
[1721236647060,0.47294578,64203.0,64202.0,0.014]
[1721236647173,1.09596778,64203.0,64202.0,0.014]
[1721236647376,1.17246778,64203.0,64202.0,0.014]
[1721236647576,1.27246778,64203.0,64202.0,0.014]
[1721236648017,1.26846778,64203.0,64202.0,0.009]
[1721236648397,1.27146778,64203.0,64202.0,0.001]
[1721236648596,1.27246778,64203.0,64202.0,0.001]
[1721236648962,1.27246778,64203.0,64202.0,0.00071513]
[1721236649088,0.96095678,64203.0,64202.0,0.00071513]
[1721236649690,1.27246778,64203.0,64202.0,0.00071513]
[1721236650312,1.27246778,64203.0,64187.0,0.000913]
[1721236650313,0.155786,64191.0,64187.0,0.000913]
[1721236650516,0.467376,64188.0,64187.0,0.000913]
[1721236650735,0.155792,64188.0,64187.0,0.000913]
[1721236651331,0.00264954,64199.0,64187.0,0.000913]
[1721236651531,0.311549,64196.0,64189.0,0.155788]
[1721236651777,0.10264954,64199.0,64189.0,0.155788]
[1721236651778,0.155778,64194.0,64189.0,0.155788]
[1721236651982,0.155778,64194.0,64190.0,0.155787]
[1721236652186,0.00264954,64193.0,64192.0,0.155782]
[1721236652328,0.10264954,64197.0,64192.0,0.155782]
[1721236652533,0.155775,64195.0,64188.0,0.311584]
[1721236652752,0.00264954,64194.0,64190.0,0.155786]
[1721236653735,0.00264954,64194.0,64191.0,0.155784]
[1721236653923,0.00264954,64195.0,64191.0,0.155784]
[1721236654345,0.00264954,64195.0,64190.0,0.311571]
[1721236654569,0.003,64194.0,64191.0,0.15438174]
[1721236654767,0.003,64194.0,64193.0,0.7789]
[1721236654993,0.00264954,64199.0,64196.0,0.155771]
[1721236655109,0.4662,64200.0,64196.0,0.155771]
[1721236655727,0.4662,64200.0,64197.0,0.15577]
[1721236655933,0.4662,64200.0,64199.0,0.778827]
[1721236656387,0.00067978,64203.0,64202.0,0.77879]
[1721236656875,0.00067978,64203.0,64202.0,1.090306]
[1721236657080,0.00067978,64203.0,64202.0,0.85759]
[1721236657274,0.00067978,64203.0,64202.0,1.01197174]
[1721236657481,0.00067978,64203.0,64202.0,0.467274]
[1721236657685,0.00067978,64203.0,64202.0,0.155758]
[1721236657855,0.00067978,64203.0,64197.0,0.311539]
[1721236657856,0.00067978,64203.0,64196.0,0.0781]
[1721236658024,0.00067978,64203.0,64202.0,0.156758]
[1721236658025,0.00667978,64203.0,64202.0,0.156758]
[1721236658463,0.00167978,64203.0,64202.0,0.163758]
[1721236658679,0.00167978,64203.0,64202.0,0.008]
[1721236658850,0.15743478,64203.0,64202.0,0.008]
[1721236659050,0.15743478,64203.0,64188.0,0.0757]
[1721236659051,0.155761,64201.0,64197.0,0.15577]
[1721236659249,0.155761,64201.0,64194.0,0.311551]
[1721236659250,0.15841454,64200.0,64195.0,0.155773]
[1721236659451,0.15576,64202.0,64197.0,0.155768]
[1721236659707,0.31417254,64201.0,64195.0,0.155774]
[1721236659832,0.31219078,64203.0,64198.0,0.155768]
[1721236660036,0.31219078,64203.0,64194.0,0.311551]
[1721236660037,0.311522,64201.0,64194.0,0.311551]
[1721236660233,0.311522,64201.0,64188.0,0.1375]
[1721236660234,0.00264954,64200.0,64188.0,0.373382]
[1721236660437,0.155777,64194.0,64190.0,0.155785]
[1721236661367,0.155775,64195.0,64191.0,0.155784]
[1721236661771,0.001,64194.0,64193.0,0.46734]
[1721236662035,0.001,64194.0,64193.0,0.7789]
[1721236662254,0.002,64194.0,64193.0,1.22966]
[1721236662605,0.002,64194.0,64193.0,1.35901053]
[1721236662606,0.001,64194.0,64193.0,1.35901053]
[1721236663543,0.001,64195.0,64194.0,0.778887]
[1721236663729,0.002,64195.0,64194.0,0.90823753]
[1721236663888,0.002,64195.0,64194.0,1.37417427]
[1721236664227,0.001,64195.0,64194.0,1.37417427]
[1721236664794,0.00067978,64203.0,64202.0,0.77879]
[1721236666220,0.00067978,64203.0,64202.0,0.468274]
[1721236666774,0.00067978,64203.0,64202.0,0.001]
[1721236666890,0.00267978,64203.0,64202.0,0.001]
[1721236668534,0.46994578,64203.0,64202.0,0.001]
[1721236668904,0.92425678,64203.0,64202.0,0.001]
[1721236669099,1.33576778,64203.0,64202.0,0.001]
[1721236669859,1.80166052,64203.0,64202.0,0.001]
[1721236670269,1.49014952,64203.0,64202.0,0.001]
[1721236674053,1.80166052,64203.0,64202.0,0.001]
[1721236674587,1.49014952,64203.0,64202.0,0.001]
[1721236674763,1.59413788,64203.0,64202.0,0.001]
[1721236675122,1.83607687,64203.0,64202.0,0.001]
[1721236675314,1.55626405,64203.0,64202.0,0.001]
[1721236675517,1.55627183,64203.0,64202.0,0.001]
[1721236675742,1.64903451,64203.0,64202.0,0.001]
[1721236675944,1.52456587,64203.0,64202.0,0.001]
[1721236676106,1.55636053,64203.0,64202.0,0.001]
[1721236676303,1.52456587,64203.0,64202.0,0.001]
[1721236677316,1.37018413,64203.0,64202.0,0.001]
[1721236677668,1.37440558,64203.0,64202.0,0.001]
[1721236680053,1.3744039,64203.0,64202.0,0.001]
[1721236680464,1.30478413,64203.0,64202.0,0.001]
[1721236680717,1.37440442,64203.0,64202.0,0.001]
[1721236681144,1.52878616,64203.0,64202.0,0.001]
[1721236681778,1.37440043,64203.0,64202.0,0.001]
[1721236682356,1.3744014,64203.0,64202.0,0.001]
[1721236682884,1.52878314,64203.0,64202.0,0.001]
[1721236683027,1.51610065,64203.0,64202.0,0.001]
[1721236683223,1.090544,64188.0,64187.0,0.000913]
[1721236683448,1.49462574,64188.0,64187.0,0.000913]
[1721236683848,2.01256712,64188.0,64187.0,0.000913]
[1721236684100,1.89657334,64188.0,64187.0,0.000913]
[1721236685096,1.90735022,64188.0,64187.0,0.002913]
[1721236685297,1.88877327,64188.0,64187.0,0.002913]
[1721236685500,1.92215663,64188.0,64187.0,0.002913]
[1721236685692,2.03796421,64188.0,64187.0,0.002913]
[1721236685887,1.61057263,64188.0,64187.0,0.002913]
[1721236686131,1.5791938,64188.0,64187.0,0.001913]
[1721236686334,1.60370587,64188.0,64187.0,0.001913]
[1721236686534,1.983525,64188.0,64187.0,0.001913]
[1721236686687,2.0079045,64188.0,64187.0,0.001913]
[1721236687094,1.969525,64188.0,64187.0,0.000913]
[1721236687298,1.671941,64188.0,64187.0,0.001913]
[1721236687494,1.59117028,64188.0,64187.0,0.002913]
[1721236687700,1.52050896,64188.0,64187.0,0.001913]
[1721236687915,1.42802574,64188.0,64187.0,0.000913]
[1721236688108,1.44202574,64188.0,64187.0,0.001913]
[1721236688477,1.45102574,64188.0,64187.0,0.002913]
[1721236688686,1.43702574,64188.0,64187.0,0.001913]
[1721236688893,1.43702574,64188.0,64187.0,0.000913]
[1721236688894,1.42802574,64188.0,64187.0,0.000913]
[1721236689100,1.44202574,64188.0,64187.0,0.001913]
[1721236689444,1.45102574,64188.0,64187.0,0.002913]
[1721236691052,1.76260974,64188.0,64187.0,0.002913]
[1721236691258,2.00628729,64188.0,64187.0,0.002913]
[1721236691492,2.12797631,64188.0,64187.0,0.002913]
[1721236691697,2.46394262,64188.0,64187.0,0.002913]
[1721236692092,2.77552662,64188.0,64187.0,1e-06]
[1721236692302,0.779372,64154.0,64153.0,0.46304871]
[1721236692706,0.155882,64151.0,64150.0,0.0663]
[1721236692909,0.311742,64156.0,64150.0,0.0663]
[1721236693151,0.311728,64159.0,64150.0,0.0663]
[1721236693359,0.155871,64156.0,64152.0,0.155879]
[1721236693554,0.311728,64159.0,64153.0,0.155875]
[1721236693757,0.155855,64162.0,64154.0,0.311748]
[1721236693978,0.877899,64165.0,64150.0,0.0663]
[1721236694156,0.155882,64151.0,64150.0,0.0663]
[1721236694358,0.467646,64151.0,64150.0,0.0663]
[1721236694561,0.155882,64151.0,64150.0,0.0663]
[1721236694969,0.155878,64153.0,64150.0,0.0663]
[1721236695372,0.001,64151.0,64150.0,0.0673]
[1721236696432,0.156882,64151.0,64150.0,0.0673]
[1721236696557,0.156882,64151.0,64150.0,0.005]
[1721236696558,0.78041,64151.0,64150.0,0.005]
[1721236696762,1.092174,64151.0,64150.0,0.005]
[1721236696958,1.092174,64151.0,64150.0,0.005913]
[1721236697378,1.092174,64151.0,64150.0,0.000913]
[1721236697379,1.091174,64151.0,64150.0,0.000913]
[1721236697574,0.78041,64151.0,64150.0,0.006913]
[1721236697801,0.001,64151.0,64150.0,0.006913]
[1721236698004,0.156882,64151.0,64150.0,0.005913]
[1721236698383,0.163882,64151.0,64150.0,0.005913]
[1721236699062,0.008,64151.0,64150.0,0.243797]
[1721236699258,0.479646,64151.0,64150.0,0.087913]
[1721236699657,0.167882,64151.0,64150.0,0.087913]
[1721236699912,0.167882,64151.0,64150.0,0.005913]
[1721236699913,0.479646,64151.0,64150.0,0.005913]
[1721236700083,0.467646,64151.0,64150.0,0.000913]
[1721236700465,0.469646,64151.0,64150.0,0.002913]
[1721236700869,0.002,64151.0,64150.0,0.002913]
[1721236702033,0.002,64151.0,64150.0,0.066913]
[1721236702238,0.002,64151.0,64150.0,0.534566]
[1721236702577,0.002,64151.0,64150.0,0.846335]
[1721236704049,0.002,64151.0,64150.0,0.066913]
[1721236704161,0.002,64151.0,64150.0,0.222797]
[1721236704928,0.002,64151.0,64150.0,0.066913]
[1721236705228,0.002,64151.0,64150.0,0.534566]
[1721236705639,0.002,64151.0,64150.0,1.39348574]
[1721236706615,0.4662,64165.0,64162.0,0.155854]
[1721236706826,0.4662,64165.0,64154.0,0.1449]
[1721236707017,0.4662,64165.0,64164.0,0.15585]
[1721236707221,0.4662,64165.0,64164.0,0.467551]
[1721236707497,0.4662,64165.0,64164.0,0.779252]
[1721236707735,0.4662,64165.0,64164.0,0.549351]
[1721236707907,0.4772,64165.0,64164.0,0.549351]
[1721236708486,0.4772,64165.0,64164.0,0.861052]
[1721236709107,0.4662,64165.0,64164.0,0.861052]
[1721236709307,0.4742,64165.0,64164.0,0.861052]
[1721236709512,0.4752,64165.0,64164.0,0.867052]
[1721236709881,0.4762,64165.0,64164.0,0.877052]
[1721236710242,0.01,64165.0,64164.0,0.877052]
[1721236710447,0.01,64165.0,64164.0,1.03143374]
[1721236710654,0.01,64165.0,64164.0,1.09713374]
[1721236710855,0.01,64165.0,64164.0,1.53824201]
[1721236713086,0.01,64165.0,64164.0,1.53823383]
[1721236714463,0.140823,64175.0,64170.0,0.155835]
[1721236714707,0.155822,64176.0,64171.0,0.155833]
[1721236714887,0.155822,64176.0,64172.0,0.15583]
[1721236715290,0.155825,64175.0,64167.0,0.311686]
[1721236715568,0.311634,64178.0,64167.0,0.311686]
[1721236715569,0.0778,64176.0,64167.0,0.155843]
[1721236715964,0.311658,64173.0,64164.0,0.459197]
[1721236716189,0.006,64175.0,64170.0,0.001]
[1721236716571,0.008,64175.0,64172.0,0.155829]
[1721236716769,0.157824,64175.0,64171.0,0.155833]
[1721236717168,0.002,64175.0,64172.0,0.15583]
[1721236717784,0.002,64175.0,64170.0,0.311669]
[1721236717785,0.002,64175.0,64171.0,0.311664]
[1721236718036,0.002,64175.0,64173.0,0.155828]
[1721236718163,0.002,64175.0,64172.0,0.155831]
[1721236718368,0.162821,64176.0,64172.0,0.155831]
[1721236718635,0.001,64175.0,64172.0,0.155831]
[1721236719018,0.160824,64175.0,64171.0,0.156833]
[1721236719419,0.155824,64175.0,64171.0,0.155833]
[1721236719753,0.155824,64175.0,64173.0,0.005]
[1721236720078,0.155824,64175.0,64171.0,0.155833]
[1721236720367,0.311587,64188.0,64169.0,0.00311644]
[1721236720558,0.311587,64188.0,64175.0,0.155822]
[1721236720559,0.155812,64180.0,64175.0,0.155822]
[1721236720758,0.155812,64180.0,64175.0,0.311646]
[1721236720959,0.1,64183.0,64172.0,0.005]
[1721236720960,0.155809,64181.0,64172.0,0.005]
[1721236721136,0.155809,64181.0,64175.0,0.311646]
[1721236721340,0.311616,64182.0,64175.0,0.467467]
[1721236721341,0.155812,64180.0,64175.0,0.467467]
[1721236722223,0.255804,64183.0,64179.0,0.220813]
[1721236722425,0.255804,64183.0,64179.0,0.065]
[1721236722426,0.155808,64182.0,64179.0,0.065]
[1721236723025,0.1,64183.0,64179.0,0.065]
[1721236723185,0.004,64180.0,64179.0,0.220813]
[1721236723589,0.1,64183.0,64179.0,0.220813]
[1721236723772,0.1,64183.0,64180.0,0.155811]
[1721236723965,0.007,64182.0,64180.0,0.155811]
[1721236724192,0.007,64182.0,64179.0,0.221813]
[1721236725047,0.007,64182.0,64180.0,0.155811]
[1721236725251,0.104,64183.0,64180.0,0.155811]
[1721236725607,0.267805,64183.0,64179.0,0.221813]
[1721236726012,0.112,64183.0,64182.0,0.155806]
[1721236726354,0.004,64183.0,64182.0,0.779032]
[1721236727094,0.004,64183.0,64182.0,1.24502674]
[1721236727324,0.004,64183.0,64182.0,1.24602674]
[1721236727325,0.012,64183.0,64182.0,1.24602674]
[1721236727495,0.008,64183.0,64182.0,1.24602674]
[1721236727917,0.008,64183.0,64182.0,0.468419]
[1721236728521,0.008,64183.0,64182.0,0.015]
[1721236728522,0.009,64183.0,64182.0,0.015]
[1721236728682,0.001,64183.0,64182.0,0.014]
[1721236728883,1.16880279,64183.0,64182.0,0.014]
[1721236729080,1.42518453,64183.0,64182.0,0.014]
[1721236729351,1.88079253,64183.0,64182.0,0.014]
[1721236729549,2.61524027,64183.0,64182.0,0.014]
[1721236729748,2.5108907,64183.0,64182.0,0.014]
[1721236729951,2.5118907,64183.0,64182.0,0.02]
[1721236730364,2.5108907,64183.0,64182.0,0.014]
[1721236731097,2.5118907,64183.0,64182.0,0.021]
[1721236731273,2.5118907,64183.0,64164.0,0.000913]
[1721236731274,1.520132,64165.0,64164.0,0.000913]
[1721236731500,1.75168853,64165.0,64164.0,0.000913]
[1721236731638,1.89605802,64165.0,64164.0,0.000913]
[1721236731839,1.81888323,64165.0,64164.0,0.000913]
[1721236732701,1.83288323,64165.0,64164.0,0.001913]
[1721236733716,1.52118723,64165.0,64164.0,0.001913]
[1721236734149,1.53218723,64165.0,64164.0,0.002913]
[1721236735291,1.47878723,64165.0,64164.0,0.002913]
[1721236735491,1.43441774,64165.0,64164.0,0.002913]
[1721236735921,1.479643,64165.0,64164.0,0.002913]
[1721236736751,1.26116126,64165.0,64164.0,0.002913]
[1721236736915,1.215936,64165.0,64164.0,0.002913]
[1721236738133,1.37031774,64165.0,64164.0,0.002913]
[1721236738538,1.44981774,64165.0,64164.0,0.002913]
[1721236738891,2.0715179,64165.0,64164.0,0.002913]
[1721236739404,2.0715179,64165.0,64150.0,0.000913]
[1721236739405,1.597938,64151.0,64150.0,0.000913]
[1721236739580,2.10470008,64151.0,64150.0,0.000913]
[1721236739893,2.56397799,64151.0,64150.0,0.000913]
[1721236740064,2.51397799,64151.0,64150.0,0.000913]
[1721236740268,2.10846469,64151.0,64150.0,0.000913]
[1721236740482,1.84767433,64151.0,64150.0,0.000913]
[1721236740667,1.93083013,64151.0,64150.0,0.000913]
[1721236740865,1.84767433,64151.0,64150.0,0.000913]
[1721236741067,1.86167433,64151.0,64150.0,0.000913]
[1721236741468,1.84767433,64151.0,64150.0,0.000913]
[1721236741926,1.86167433,64151.0,64150.0,0.000913]
[1721236742061,2.3917879,64151.0,64150.0,0.000913]
[1721236742423,2.3777879,64151.0,64150.0,0.000913]
[1721236742643,2.3137879,64151.0,64150.0,0.000913]
[1721236742986,1.84767433,64151.0,64150.0,0.000913]
[1721236743178,1.86167433,64151.0,64150.0,0.000913]
[1721236743780,1.81631974,64151.0,64150.0,0.000913]
[1721236744573,1.80231974,64151.0,64150.0,0.000913]
[1721236745031,1.83031974,64151.0,64150.0,0.000913]
[1721236746411,1.84431974,64151.0,64150.0,0.000913]
[1721236746711,1.78081974,64151.0,64150.0,0.000913]
[1721236747698,1.233174,64151.0,64150.0,0.000913]
[1721236748986,1.233074,64151.0,64150.0,0.000913]
[1721236749185,1.232574,64151.0,64150.0,0.000913]
[1721236749409,0.155909,64140.0,64135.0,0.186698]
[1721236749555,0.467627,64140.0,64135.0,0.186698]
[1721236749760,0.311718,64140.0,64135.0,0.030779]
[1721236749940,0.155611,64139.0,64135.0,0.186699]
[1721236750159,0.155818,64136.0,64135.0,0.030779]
[1721236750350,0.467655,64136.0,64135.0,0.030779]
[1721236750575,0.155618,64136.0,64135.0,0.030779]
[1721236750776,0.155218,64136.0,64135.0,0.030779]
[1721236750975,0.128,64151.0,64135.0,0.030779]
[1721236751181,0.012,64140.0,64137.0,0.155915]
[1721236751501,0.0118,64140.0,64139.0,0.155911]
[1721236751655,0.155901,64144.0,64139.0,0.155911]
[1721236751889,0.311693,64145.0,64139.0,0.155911]
[1721236751890,0.25855154,64143.0,64139.0,0.155911]
[1721236752105,0.25855154,64143.0,64138.0,0.155913]
[1721236752288,0.01,64140.0,64138.0,0.155913]
[1721236752482,0.165909,64140.0,64136.0,0.155917]
[1721236752685,0.022,64140.0,64135.0,0.030779]
[1721236752890,0.467755,64136.0,64135.0,0.030779]
[1721236753116,0.467755,64136.0,64129.0,0.0633]
[1721236753117,0.467799,64130.0,64129.0,0.0633]
[1721236753315,0.779665,64130.0,64129.0,0.0633]
[1721236753513,0.15594,64127.0,64126.0,0.091974]
[1721236753714,1.091583,64127.0,64126.0,0.009174]
[1721236755123,1.092583,64127.0,64126.0,0.009174]
[1721236759174,1.31266474,64127.0,64126.0,0.009174]
[1721236759431,2.14580714,64127.0,64126.0,0.009174]
[1721236759630,2.14580714,64127.0,64126.0,1e-06]
[1721236759631,2.65973355,64127.0,64126.0,1e-06]
[1721236759768,2.6950464,64127.0,64126.0,1e-06]
[1721236760284,0.05,64118.0,64101.0,0.46304871]
[1721236760471,1.091923,64107.0,64101.0,0.46304871]
[1721236760674,1.091923,64107.0,64100.0,0.009152]
[1721236761008,0.155986,64109.0,64107.0,0.1451]
[1721236761368,0.467959,64108.0,64107.0,0.1451]
[1721236761828,0.155977,64112.0,64107.0,0.1451]
[1721236762021,0.1,64111.0,64107.0,0.1451]
[1721236762777,0.778115,64120.0,64107.0,0.1451]
[1721236762977,0.778115,64120.0,64110.0,0.2241]
[1721236762978,0.4662,64120.0,64110.0,0.2241]
[1721236763184,0.4662,64120.0,64114.0,0.0645]
[1721236763459,0.467908,64115.0,64114.0,0.0645]
[1721236764326,0.779847,64115.0,64114.0,0.0645]
[1721236764526,0.155976,64113.0,64108.0,0.219186]
[1721236765414,0.155972,64114.0,64110.0,0.155981]
[1721236765558,0.003,64115.0,64109.0,0.155984]
[1721236765759,0.003,64115.0,64114.0,0.155972]
[1721236766078,0.003,64115.0,64114.0,0.92056]
[1721236766685,0.003,64115.0,64114.0,1.38688574]
[1721236766930,0.15859554,64125.0,64120.0,0.155956]
[1721236767096,0.15859554,64125.0,64116.0,0.311931]
[1721236767097,0.311896,64124.0,64116.0,0.311931]
[1721236767294,0.155969,64115.0,64114.0,0.1407]
[1721236767517,0.31192,64119.0,64114.0,0.1407]
[1721236767518,0.155966,64117.0,64114.0,0.1407]
[1721236767848,0.00264954,64133.0,64114.0,0.29508174]
[1721236767849,0.311867,64130.0,64114.0,0.29508174]
[1721236768069,0.00264954,64126.0,64118.0,0.311923]
[1721236768270,0.155944,64126.0,64121.0,0.155954]
[1721236768410,0.15859554,64125.0,64121.0,0.155954]
[1721236768606,0.155946,64125.0,64121.0,0.155954]
[1721236768807,0.1,64127.0,64118.0,0.311923]
[1721236768808,0.155948,64124.0,64118.0,0.311923]
[1721236769014,0.07717479,64127.0,64108.0,0.0613]
[1721236769209,0.00264954,64126.0,64119.0,0.0613]
[1721236769437,0.1,64129.0,64121.0,0.155954]
[1721236769438,0.155945,64125.0,64121.0,0.155954]
[1721236769644,0.155957,64120.0,64119.0,0.0613]
[1721236769863,0.1,64129.0,64110.0,0.0794]
[1721236769864,0.311934,64116.0,64115.0,0.0648]
[1721236770121,0.467901,64116.0,64115.0,0.0648]
[1721236770706,0.467944,64110.0,64109.0,0.0648]
[1721236770882,0.155979,64112.0,64109.0,0.0648]
[1721236771082,0.155981,64110.0,64109.0,0.0648]
[1721236771286,0.467944,64110.0,64109.0,0.0648]
[1721236771485,0.155981,64110.0,64109.0,0.0648]
[1721236771668,0.311943,64115.0,64109.0,0.0648]
[1721236771669,0.311952,64113.0,64109.0,0.0648]
[1721236771868,0.4662,64121.0,64109.0,0.0648]
[1721236772223,0.4662,64121.0,64111.0,0.155979]
[1721236772224,0.155971,64115.0,64111.0,0.155979]
[1721236772508,0.155967,64116.0,64111.0,0.155979]
[1721236772707,0.001,64116.0,64113.0,0.155974]
[1721236773552,0.001,64116.0,64115.0,0.155969]
[1721236773683,0.001,64116.0,64115.0,0.529108]
[1721236774110,0.001,64116.0,64115.0,1.43356774]
[1721236774330,0.4662,64121.0,64120.0,0.917187]
[1721236774648,0.4662,64121.0,64120.0,1.73709502]
[1721236774867,0.4662,64121.0,64120.0,1.42518002]
[1721236775073,0.4662,64121.0,64120.0,0.26691128]
[1721236775289,0.4662,64121.0,64120.0,0.1374]
[1721236775510,0.311886,64126.0,64120.0,0.1374]
[1721236775511,0.155945,64125.0,64120.0,0.1374]
[1721236775726,0.155945,64125.0,64121.0,0.155954]
[1721236776353,0.155948,64124.0,64120.0,0.1374]
[1721236776755,0.001,64121.0,64120.0,0.1384]
[1721236777002,0.156955,64121.0,64120.0,0.1384]
[1721236777187,0.780775,64121.0,64120.0,0.001]
[1721236777392,0.155958,64120.0,64116.0,0.155967]
[1721236777602,0.311903,64123.0,64111.0,0.0639]
[1721236777837,0.31191,64121.0,64113.0,0.155973]
[1721236778041,0.311903,64123.0,64114.0,0.12951356]
[1721236778042,0.155965,64117.0,64114.0,0.12951356]
[1721236778282,0.155965,64117.0,64112.0,0.155976]
[1721236778283,0.155968,64116.0,64112.0,0.155976]
[1721236778477,0.155964,64118.0,64112.0,0.31195]
[1721236778897,0.155964,64118.0,64114.0,0.155971]
[1721236779327,0.001,64125.0,64116.0,0.311932]
[1721236779593,0.15859754,64124.0,64120.0,0.155956]
[1721236779832,0.155945,64125.0,64121.0,0.234254]
[1721236780265,0.155936,64129.0,64125.0,0.155945]
[1721236780486,0.155941,64127.0,64122.0,0.0639]
[1721236780693,0.00264954,64126.0,64122.0,0.0639]
[1721236780900,0.00264954,64126.0,64123.0,0.155949]
[1721236781120,0.311874,64129.0,64124.0,0.155946]
[1721236781121,0.155936,64129.0,64124.0,0.155946]
[1721236781328,0.002,64125.0,64124.0,0.467841]
[1721236781530,0.002,64125.0,64124.0,0.44139566]
[1721236781740,0.002,64125.0,64124.0,0.59734066]
[1721236782187,0.002,64125.0,64124.0,1.22113066]
[1721236782386,0.002,64125.0,64122.0,0.031741]
[1721236782592,0.31185,64134.0,64124.0,0.12949736]
[1721236782593,0.155939,64128.0,64124.0,0.12949736]
[1721236782864,0.155939,64128.0,64123.0,0.155949]
[1721236783071,0.003,64126.0,64124.0,0.155947]
[1721236783480,0.16258554,64129.0,64124.0,0.155947]
[1721236783713,0.002,64125.0,64124.0,0.155947]
[1721236783954,0.002,64125.0,64123.0,0.155949]
[1721236784170,0.155947,64125.0,64122.0,0.031741]
[1721236784382,0.311882,64127.0,64121.0,0.0783]
[1721236784590,0.002,64126.0,64123.0,0.0621]
[1721236785226,0.002,64126.0,64123.0,0.21805]
[1721236786013,0.15594,64127.0,64123.0,0.0621]
[1721236786469,0.002,64125.0,64123.0,0.0621]
[1721236786674,0.002,64125.0,64124.0,0.155947]
[1721236786891,0.00264954,64131.0,64127.0,0.155939]
[1721236787095,0.4662,64132.0,64127.0,0.155939]
[1721236787481,0.155927,64133.0,64127.0,0.155939]
[1721236787689,0.155927,64133.0,64126.0,0.311883]
[1721236787690,0.4662,64141.0,64131.0,0.311861]
[1721236787870,0.08407954,64145.0,64131.0,0.311861]
[1721236787871,0.00264954,64140.0,64134.0,0.311846]
[1721236788072,0.311803,64144.0,64134.0,0.311846]
[1721236788073,0.311803,64144.0,64135.0,0.15592]
[1721236788289,0.155903,64143.0,64136.0,0.155917]
[1721236788489,0.155905,64142.0,64136.0,0.155917]
[1721236789153,0.46304871,64140.0,64129.0,0.1437]
[1721236789375,0.14964954,64139.0,64130.0,0.12948057]
[1721236789581,0.14964954,64139.0,64126.0,0.155941]
[1721236789582,0.147,64139.0,64126.0,0.155941]
[1721236789855,0.155931,64131.0,64126.0,0.155941]
[1721236791594,0.008,64139.0,64137.0,0.155914]
[1721236791798,0.008,64139.0,64128.0,0.1386]
[1721236791799,0.00264954,64143.0,64135.0,0.155919]
[1721236792220,0.155907,64141.0,64136.0,0.155918]
[1721236792428,0.311801,64144.0,64133.0,0.311847]
[1721236792429,0.155904,64142.0,64137.0,0.155915]
[1721236792647,0.155904,64142.0,64133.0,0.311847]
[1721236792648,0.00083,64145.0,64136.0,0.311835]
[1721236792856,0.00264954,64144.0,64139.0,0.15591]
[1721236793057,0.256727,64145.0,64139.0,0.15591]
[1721236793650,0.155899,64144.0,64139.0,0.15591]
[1721236793856,0.011,64143.0,64139.0,0.15591]
[1721236794515,0.155899,64144.0,64138.0,0.155911]
[1721236795263,0.11483,64145.0,64144.0,0.155899]
[1721236795264,0.01483,64145.0,64144.0,0.155899]
[1721236795498,0.01483,64145.0,64142.0,0.311804]
[1721236795499,0.02883,64145.0,64142.0,0.311804]
[1721236795741,0.02883,64145.0,64137.0,0.155914]
[1721236795742,0.155905,64142.0,64137.0,0.155914]
[1721236795974,0.155901,64143.0,64138.0,0.155912]
[1721236796437,0.168901,64143.0,64138.0,0.155913]
[1721236796899,0.155901,64143.0,64138.0,0.155913]
[1721236797133,0.005,64143.0,64139.0,0.15591]
[1721236797607,0.003,64143.0,64139.0,0.15591]
[1721236798016,0.155899,64144.0,64139.0,0.15591]
[1721236799477,0.155899,64144.0,64127.0,0.0646]
[1721236799478,0.31183,64138.0,64127.0,0.0646]
[1721236799684,0.311855,64133.0,64128.0,0.12947303]
[1721236799888,0.155926,64133.0,64128.0,0.155937]
[1721236801419,0.156926,64133.0,64128.0,0.002]
[1721236801625,0.156926,64133.0,64128.0,0.157936]
[1721236801834,0.001,64133.0,64128.0,0.002]
[1721236802047,0.001,64133.0,64129.0,0.155934]
[1721236802255,0.001,64133.0,64128.0,0.002]
[1721236802739,0.001,64133.0,64132.0,0.467784]
[1721236803802,0.001,64133.0,64132.0,0.77964]
[1721236804663,0.001,64133.0,64132.0,0.469784]
[1721236805166,0.00264954,64138.0,64133.0,0.155924]
[1721236805385,0.155912,64139.0,64134.0,0.155922]
[1721236805613,0.07717479,64135.0,64132.0,0.002]
[1721236805842,0.155925,64133.0,64132.0,0.002]
[1721236806062,0.779627,64133.0,64132.0,0.002]
[1721236806274,0.155944,64126.0,64120.0,0.393611]
[1721236806703,0.155944,64126.0,64121.0,0.155953]
[1721236807184,0.311881,64127.0,64120.0,0.0817]
[1721236807185,0.155949,64124.0,64120.0,0.0817]